Cogmind - Beta 16.1 @@@ ROGUE MODE // 2026.03.24 @ 22:39:13 Player: Ez Result: Destroyed by G-34 Mercenary with Small Laser Performance ------------- Evolutions (1) 500 Regions Visited (2) 400 Robots Destroyed (34) 170 Value Destroyed (742) 742 Prototype IDs (0) 0 Alien Tech Used (0) 0 Bonus (0) 0 TOTAL SCORE: 1812 Bonus ------- None Cogmind --------- Core Integrity 0/400 Matter 289/300 Energy 100/100 System Corruption 0% Temperature Cool (6) Movement Core (400) Ox7 Location -9/Materials Parts ------- > --- POWER (1) -------- (None) > --- PROPULSION (4) --- (None) > --- UTILITY (2) ------ Large Storage Unit Transport Network Coupler > --- WEAPON (2) ------- Katana > --- INVENTORY (15) --- Faulty Heavy Ion Engine Improved Heat Sink Huge Storage Unit Structural Scanner Structural Scanner Structural Scanner Transport Network Coupler ECM Suite Peak State ------------ > --- POWER ------------ Light Nuclear Core > --- PROPULSION ------- Light Treads Light Treads Light Treads Light Treads > --- UTILITY ---------- Large Storage Unit Transport Network Coupler > --- WEAPON ----------- Assault Rifle Assault Rifle > --- INVENTORY -------- Improved Heat Sink Huge Storage Unit Structural Scanner Structural Scanner Structural Scanner Transport Network Coupler ECM Suite Katana [Rating: 12] Favorites ----------- Power Ion Engine Engine Ion Engine Power Core Light Nuclear Core Propulsion Light Treads Treads Light Treads Utility Large Storage Unit Device Sensor Array Storage Large Storage Unit Processor Transport Network Coupler Weapon Assault Rifle Ballistic Gun Assault Rifle Slashing Weapon Katana Build | -11 -10 -9 ------- Run | Yrd Mat Mat Slots Evolved 2 | . . 2 Power . | . . . Propulsion 2 | . . 2 Utility . | . . . Weapon . | . . . Parts Attached 20 | 6 9 5 Power 4 | 1 2 1 Engine 3 | 1 2 . Core 1 | . . 1 Reactor . | . . . Propulsion 6 | 2 1 3 Treads 6 | 2 1 3 Leg . | . . . Wheel . | . . . Hover . | . . . Flight . | . . . Utility 5 | 1 4 . Device 1 | . 1 . Storage 3 | 1 2 . Processor 1 | . 1 . Hackware . | . . . Protection . | . . . Artifact . | . . . Weapon 5 | 2 2 1 Energy Gun . | . . . Energy Cannon . | . . . Ballistic Gun 4 | 2 2 . Ballistic Cannon . | . . . Launcher . | . . . Special Weapon . | . . . Impact Weapon . | . . . Slashing Weapon 1 | . . 1 Piercing Weapon . | . . . Special Melee Weapon . | . . . Unidentified Prototypes . | . . . Parts Lost 12 | . 5 7 Power 3 | . 1 2 Propulsion 4 | . 1 3 Utility 1 | . 1 . Weapon 4 | . 2 2 Highest Loss Streak 4 | . 2 4 To Critical Strikes . | . . . Average Backups 5 | . 4 8 Power . | . 1 . Propulsion . | . . . Utility 4 | . 2 7 Weapon . | . . . Tool/Special . | . . . Unused Backups 9 | . 1 8 Power 2 | . 1 1 Propulsion 1 | . . 1 Utility 6 | . . 6 Weapon . | . . . Tool/Special . | . . . Average Slot Usage (%) 83 | . 81 85 Engine 11 | . 13 8 Treads 27 | . 24 31 Storage 12 | . 13 11 Processor 6 | . 4 11 Ballistic Gun 21 | . 22 21 Peak Build Rating 12 | 6 8 12 Average Rating 7 | 4 6 9 On Entrance 4 | . 6 8 Avg Prop Armor Cover (%) . | . . . Naked Turns . | . . . Heaviest Build 88 | 11 88 29 Greatest Support 80 | 40 40 80 Greatest Overweight (x) 2 | 1 2 . Average Overweight (x) . | . . . Largest Inventory Capacity 25 | 8 25 15 Average Capacity 13 | 6 13 15 Most Carried 10 | 1 10 10 Average Carried 5 | . 4 8 Final Capacity 15 | 8 15 15 Final Carried 10 | 1 10 8 Class Distribution -------------------- 71% | Mutant 28% | Scavenger-Mutant Dominant Class ---------------- Mutant | -10/Materials Scavenger-Mutant | -9/Materials Resources | -11 -10 -9 ----------- Run | Yrd Mat Mat Matter Collected 825 | 30 426 369 Remotely . | . . . Salvage Created 1118 | . 620 498 Parts 59 | . 32 27 Haulers Intercepted 4 | . 2 2 Recyclers Shooed 1 | . . 1 Parts Field Recycled . | . . . Retrieved Matter . | . . . Parts Self-Destructed . | . . . Prevented . | . . . Parts Restored . | . . . Kills | -11 -10 -9 ------- Run | Yrd Mat Mat Combat Hostiles Destroyed 26 | . 13 13 Melee 2 | . 1 1 Guns 24 | . 12 12 Classes Destroyed 8 | . 6 2 Worker 1 | . 1 . Builder 2 | . 2 . Hauler 4 | . 2 2 Watcher 1 | . 1 . Swarmer 10 | . 3 7 Grunt 13 | . 10 3 Duelist 2 | . . 2 Sentry 1 | . . 1 Best Kill Streak 4 | . 3 4 Combat Bots Only 4 | . 3 4 Max Kills in Single Turn 2 | . 2 2 Gunslinging 1 | . 1 1 Exploded . | . . . Melee 1 | . 1 1 Uniques/NPCs Destroyed . | . . . Combat | -11 -10 -9 -------- Run | Yrd Mat Mat Hostile Shots Fired 229 | . 106 123 Missed 63 | . 32 31 Hits 166 | . 74 92 Melee 11 | . . 11 Projectile 155 | . 74 81 Critical Strikes 4 | . . 4 Damage Taken 1972 | . 836 1136 Core 549 | . 140 409 Absorbed by Shields . | . . . Regen/Repaired (Parts) 126 | . 126 . Core Remaining (%) 72 | 100 44 . Volleys Fired 106 | . 70 36 Largest 2 | . 2 2 Hottest 40 | . 40 40 Shots Fired 189 | . 120 69 Gun 189 | . 120 69 Cannon . | . . . Launcher . | . . . Special . | . . . Kinetic 189 | . 120 69 Thermal . | . . . Explosive . | . . . Electromagnetic . | . . . Robot Hit Streak 10 | . 10 10 Robot Miss Streak 4 | . 4 3 Penetration Max . | . . . Secondary Targets 3 | . 1 2 Max Gunslinging Chain 1 | . 1 1 Shots Hit Robots 132 | . 79 53 Core Hits 60 | . 35 25 Critical Kills . | . . . Critical Parts Destroyed 1 | . 1 . Critical Strikes 3 | . 1 2 Destroy 1 | . 1 . Sever 2 | . . 2 Melee Attacks 10 | . . 10 Impact . | . . . Slashing 10 | . . 10 Piercing . | . . . Sneak Attacks . | . . . Combat Hostiles . | . . . Follow-up Attacks . | . . . Damage Inflicted 1646 | . 862 784 Guns 1443 | . 850 593 Cannons . | . . . Explosions . | . . . Melee 191 | . . 191 Ramming 12 | . 12 . Kinetic 1443 | . 850 593 Thermal . | . . . Explosive . | . . . Electromagnetic . | . . . Impact . | . . . Slashing 191 | . . 191 Piercing . | . . . Highest Corruption . | . . . Average Corruption . | . . . Corruption Purged . | . . . Corruption Blocked . | . . . Overload Shots . | . . . Overflow Damage . | . . . Projectiles . | . . . Explosions . | . . . Melee . | . . . Knockbacks . | . . . Impact . | . . . Kinetic . | . . . Secondary . | . . . Self-Inflicted Damage . | . . . Shots . | . . . Rammed 4 | . 4 . Targets Rammed 5 | . 5 . Kicked . | . . . Crushed 1 | . 1 . Highest Temperature 12 | . 12 2 Average Temperature 6 | . 6 2 Received Heat Transfer 690 | . 432 258 Siege Activations . | . . . Martial Activations . | . . . Shielding Activations . | . . . Robots Disrupted . | . . . Combat Hostiles . | . . . Robots Corrupted . | . . . Combat Hostiles . | . . . Parts Fried . | . . . Impact Corruptions . | . . . Robots Melted . | . . . Combat Hostiles . | . . . Parts Melted . | . . . Heat Transferred . | . . . Parts Sabotaged . | . . . Parts Stolen . | . . . Parts Stripped . | . . . Power Chain Reactions . | . . . Alert | -11 -10 -9 ------- Run | Yrd Mat Mat Maximum Alert Level . | . . . Low Security (%) 100 | 100 100 100 Level 1 . | . . . Level 2 . | . . . Level 3 . | . . . Level 4 . | . . . Level 5 . | . . . High Security . | . . . Max Security . | . . . Peak Influence 153 | . 153 144 Initial 42 | . . 42 Average 36 | . 36 40 Influence Increases 746 | . 406 340 Destroy 0b10 Robot/C 520 | . 260 260 Destroy 0b10 Robot/NC 40 | . 30 10 Destroy Leader 120 | . 66 54 Successful Hack 4 | . 4 . Destroy Structure 2 | . 1 1 Lose Combat Pursuer 60 | . 45 15 Influence Decreases 636 | . 304 332 Entered New Map 60 | . . 60 Time Decay 476 | . 264 212 Lost Part 100 | . 40 60 Squads Dispatched 3 | . 3 . Investigation 1 | . 1 . Extermination . | . . . Reinforcement 2 | . 2 . Assault . | . . . Garrison . | . . . Intercept . | . . . Searches Triggered . | . . . Construction Impeded . | . . . Haulers Reinforced . | . . . Active Scanning Responses . | . . . Cargo Convoy Interrupts . | . . . Stealth | -11 -10 -9 --------- Run | Yrd Mat Mat Distress Signals 2 | . 1 1 Communications Jammed . | . . . Distress Signals . | . . . Times Spotted 40 | . 23 17 Peak Tracking Total 5 | . 5 4 Tactical Retreats 3 | . 2 1 Traps | -11 -10 -9 ------- Run | Yrd Mat Mat Traps Triggered 1 | . 1 . Indirectly . | . . . Trap Hack Attempts . | . . . Triggered . | . . . Disarmed . | . . . Reprogrammed . | . . . Reused . | . . . Traps Extracted . | . . . Installed . | . . . Triggered . | . . . Machines | -11 -10 -9 ---------- Run | Yrd Mat Mat Machines Disabled . | . . . Max in Single Turn . | . . . Machines Repaired . | . . . Machines Dismantled . | . . . Machines Sabotaged . | . . . Overloaded Fab Kills . | . . . Hacking | -11 -10 -9 --------- Run | Yrd Mat Mat Machines Accessed 6 | . 5 1 Terminals 4 | . 3 1 Fabricators . | . . . Repair Stations 1 | . 1 . Recycling Units 1 | . 1 . Scanalyzers . | . . . Garrison Access . | . . . Total Hacks 10 | . 8 2 Successful 7 | . 7 . Failed 3 | . 1 2 Catastrophic 1 | . 1 . Database Lockouts . | . . . Manual 9 | . 7 2 Terminals 7 | . 5 2 Fabricators . | . . . Repair Stations 2 | . 2 . Recycling Units 1 | . 1 . Scanalyzers . | . . . Garrison Access . | . . . Terminal Hacks 2 | . 2 . Level Access Points 1 | . 1 . Hauler Manifests 1 | . 1 . Fabricator Hacks . | . . . Repair Station Hacks 2 | . 2 . Scan Component 1 | . 1 . Repair 1 | . 1 . Recycling Unit Hacks 1 | . 1 . Report Inventory 1 | . 1 . Scanalyzer . | . . . Garrison Access Hacks . | . . . Unauthorized Hacks 2 | . 2 . Terminals 2 | . 2 . Assimilate 1 | . 1 . Botnet 1 | . 1 . Fabricators . | . . . Repair Stations . | . . . Recycling Units . | . . . Scanalyzers . | . . . Garrison Access . | . . . Data Cores Recovered . | . . . Used . | . . . Hacking Detections 2 | . 1 1 Full Trace Events . | . . . Feedback Events . | . . . Feedback Blocked . | . . . Robot Schematics Acquired . | . . . Robots Built . | . . . Authchips . | . . . Time . | . . . Total Robot Build Rating . | . . . Part Schematics Acquired . | . . . Parts Built . | . . . Authchips . | . . . Time . | . . . Total Part Build Rating . | . . . Part Studies Acquired . | . . . Parts Repaired 1 | . 1 . Time 26 | . 26 . Parts Recycled . | . . . Recycled Matter . | . . . Retrieved Matter . | . . . Retrieved Components . | . . . Parts Scanalyzed . | . . . Part Schematics Acquired . | . . . Parts Damaged . | . . . Bothacking | -11 -10 -9 ------------ Run | Yrd Mat Mat Used RIF Installer . | . . . Robots Hacked . | . . . Non-combat . | . . . Combat . | . . . Robot Hacks Applied . | . . . Relay Couplers Released . | . . . Fabnet Peak Effective % . | . . . Robots Rewired . | . . . Allies Hacked . | . . . Hacks Repelled . | . . . Allies | -11 -10 -9 -------- Run | Yrd Mat Mat Total Allies . | . . . Largest Group . | . . . Highest-Rated Group . | . . . Highest-Rated Ally . | . . . Total Orders . | . . . Ally Attacks . | . . . Total Damage . | . . . Kills . | . . . Allies Corrupted . | . . . Allies Melted . | . . . Intel | -11 -10 -9 ------- Run | Yrd Mat Mat Active Infowar (turns) 1195 | . 523 672 Sensors 110 | . 110 . T.N.C. 1085 | . 413 672 Robot Analysis Total . | . . . Derelict Logs Recovered . | . . . Drone Launches . | . . . Drone Recoveries . | . . . Exploration | -11 -10 -9 ------------- Run | Yrd Mat Mat Turns Passed 2091 | 79 1340 672 Spaces Moved 955 | 53 587 315 Core 17 | 17 . . Treads 938 | 36 587 315 Legs . | . . . Wheels . | . . . Hover . | . . . Flight . | . . . Fastest Speed 50 | 50 160 160 Average Speed 166 | 133 172 160 Slowest Speed 320 | 160 320 160 Overloaded Moves . | . . . Propulsion Burnouts . | . . . Robots Hopped . | . . . Potential Cave-ins . | . . . Cave-ins Triggered . | . . . Exploration Rate (%) 31 | 4 70 21 Regions Visited 2 Branch Regions . Pre-discovered Areas . | . . . Known Exits Taken 1 | . 1 . Unknown Exits Taken 1 | 1 . . Scrap Searched . | . . . Spaces Dug . | . . . Terrain Destroyed . | . . . Melee . | . . . Projectile . | . . . AOE . | . . . Terrain Rammed . | . . . Walls Destroyed . | . . . Machines Disabled . | . . . Actions | -11 -10 -9 --------- Run | Yrd Mat Mat Total 1254 | 59 795 400 Wait 138 | . 107 31 Move 953 | 52 586 315 Hop . | . . . Pick Up 14 | 1 11 2 Fast Attach 15 | 6 7 2 Attach 5 | . 2 3 Detach 2 | . 2 . Swap 2 | . 2 . Drop 4 | . 3 1 Fire 106 | . 70 36 Melee 10 | . . 10 Ram . | . . . Kick . | . . . Crush 5 | . 5 . Escape Stasis . | . . . Rewire . | . . . Trap . | . . . Miscellaneous . | . . . Route ------- -11/Scrapyard -10/Materials (discovered 5 exits: *Mat x3 / [*Min] / [*Sub]) -9/Materials History --------- Turn | Location | Event 2 | -11/Scrapyard | Met Revision 17 5 | -11/Scrapyard | Discovered new exit (range 16) 80 | -11/Scrapyard | Entered Materials 204 | -10/Materials | Discovered new exit (range 14) 307 | -10/Materials | Build established: Mutant 496 | -10/Materials | Discovered new exit (range 14) 1104 | -10/Materials | Core integrity fell below 50% 1200 | -10/Materials | Discovered new exit (range 8) 1303 | -10/Materials | Repaired Lgt. Treads 1339 | -10/Materials | Identified exit to Materials 1405 | -10/Materials | Discovered new exit (range 7) 1420 | -10/Materials | Entered another Materials area 1420 | -9/Materials | Evolved 2 slots: Propulsion x2 1727 | -9/Materials | Build established: Scavenger-Mutant 2072 | -9/Materials | Core integrity fell below 50% 2080 | -9/Materials | Core integrity fell below 20% 2092 | -9/Materials | Destroyed by G-34 Mercenary with Small Laser Last Messages --------------- Acquired Prototype Engine. K-01 Serf collects debris. Acquired 11 matter. K-01 Serf collects debris. Lgt. Treads destroyed. S-10 Pest destroyed. Switching to secondary target: S-10 Pest. S-10 Pest destroyed. Switching to secondary target: S-10 Pest. S-10 Pest destroyed. Acquired 35 matter. Acquired 41 matter. Lgt. Treads destroyed. Lgt. Treads severed. Assault Rifle destroyed. Lgt. Treads severed. Lgt. Nuclear Core destroyed. L-31 Rogue Imp. Aluminum Leg severed. L-31 Rogue destroyed. G-34 Mercenary Aluminum Leg severed. Map ----- +----------------------------------------------------+ | ?????????????????????????????????????????????????? | | ?????????????????????????????????????????????????? | | ?????????????????????????????????????????????????? | | ?????????????????????????????????????????????????? | | ?????????????????????????????????????????????????? | | ?????????????????????????????????????????????????? | | #######??????????????????????????????????????????? | | #################??????????????????????????? | | """ # # #??????????????????????????? | | """ # # """ """ #??????? ????????????????? | | """ + T + """ """ #??????? #???????????????? | | # # """ """ #??????? #???????????????? | | # # #??????? #???????????????? | | ######### #############??????# #???????????????? | | # #!#??????????????????# #???????????????? | | # +|#??????????????????# ???????????????? | | # """"" #|#??????????????????+ #???????????????? | | ??""""" #[#??######??????????# #???????????????? | | ???"?""?# #??? ??????????# #???????????????? | | ????###?#[#??? #?????????# #???????????????? | | ?####???#|#??? #?????????# #???????????????? | | ?? ??#|#??? #?????????# #???????????????? | | ?? """ ?#*#??""" ########### ^#???????????????? | | ?# """ # #?""""" ## ## #???????????????? | | ?# """ # #?""""" ## = ## #???????????????? | | ?# + #???""" ## /@ ## #???????????????? | | ?# [ # #????? ## =g=g ## ##??????????????? | | ?########!########+######+### #??????????????? | | ???????# ! [ =[ #??????????????? | | ???????# !%[ [ ! =%== #??????????????? | | ???????# = [%* =%= #??????????????? | | ???????### #### [########### #??????????????? | | ????######+#### #?????????#######??????????????? | | ????# # #??????????????????????????????? | | ????# # #??????????????????????????????? | | ????# # ######?????????????????????????? | | ????# + #?????????????????????????? | | ????# # #### #?????????????????????????? | | ????# ###+#??# #?????????????????????????? | | ????# # ?# #?????????????????????????? | | ????# # ## #?????????????????????????? | | ????########### ## #?????????????????????????? | | ??????????????# ## #?????????????????????????? | | ????################## #?????????????????????????? | | ????# """ # #???# #?????????????????????????? | | ????# """ # ##### ########??????????????????? | | ????# """ + ???????????? | | ????# # #####+########?????a????????????? | | ????# # #?? ????????????????????????? | | ????#[ ## ### #???????????????????????? | +----------------------------------------------------+ Best States ------------- Heat Dissipation 28 Energy Generation 14 Energy Capacity 250 Matter Stores 300 Matter Capacity 300 Sight Range 16 Robot Scan Range 14 Terrain Scan Density 10 Evasion (%) 40 Recoil Reduction 4 Item Schematics ----------------- None Robot Schematics ------------------ None Fabricated ------------ Nothing Repaired ---------- Lgt. Treads | 10% | -10/Materials Studied --------- None Alien Tech Used ----------------- None Achievements -------------- None Challenges ------------ None Game ------ Seed CoreScanNullifier Manual? 0 Play Time 00:41:16 Cumulative 32.5 hours Start 2026.03.24 @ 21:25:30 End 2026.03.24 @ 22:39:13 Sessions 1 Manual Loads 0 Difficulty Rogue Special Mode None Game No. 86 Rogue 84 Adventurer 2 Explorer 0 Win Type - Total 0 Types 0/0/0/0/0/0/0/0/0/0 Lore% 7 Gallery% 19 Achievement% 17 Wizard Run 0 Options --------- Layout 1 ASCII 0 Keyboard 1 Movement Numpad Keybinds 0 Fullscreen 2 Font 32/SmallcapsGlow Map View 50x35 Zoom Use 0% Tactical HUD 0 Map Filters NONE Filters NONE Steam 1 RUN: 6da30f24-107d-4cb1-bf95-c08d4edc45e7